Cogmind - Beta 17 @@@ ROGUE MODE // 2026.06.28 @ 00:46:49 Player: Ammie Result: Destroyed by S-10 Pest with Light Assault Rifle Performance ------------- Evolutions (1) 500 Regions Visited (2) 400 Robots Destroyed (42) 210 Value Destroyed (729) 729 Prototype IDs (0) 0 Alien Tech Used (0) 0 Bonus (0) 0 TOTAL SCORE: 1839 Bonus ------- None Cogmind --------- Core Integrity 0/400 Matter 300/300 Energy 331/350 System Corruption 1% Temperature Cool (0) Movement Core (450) Ox8 Location -9/Materials Parts ------- > --- POWER (1) -------- (None) > --- PROPULSION (2) --- (None) > --- UTILITY (4) ------ Large Storage Unit High-capacity Battery ECM Suite > --- WEAPON (2) ------- (None) > --- INVENTORY (15) --- Ion Engine Ion Engine Light Ion Engine Aluminum Leg Improved Datajack Improved Datajack Peak State ------------ > --- POWER ------------ Ion Engine > --- PROPULSION ------- Light Treads Light Treads > --- UTILITY ---------- Large Storage Unit High-capacity Battery High-capacity Battery ECM Suite > --- WEAPON ----------- EM Shotgun EM Shotgun > --- INVENTORY -------- Ion Engine Light Ion Engine Aluminum Leg EM Pulse Gun EM Shotgun Improved Datajack Improved Datajack [Rating: 12] Favorites ----------- Power Ion Engine Engine Ion Engine Propulsion Light Treads Treads Light Treads Leg Aluminum Leg Utility Large Storage Unit Device ECM Suite Storage Large Storage Unit Weapon EM Shotgun Energy Gun EM Shotgun Build | -11 -10 -9 ------- Run | Yrd Mat Mat Slots Evolved 2 | . . 2 Power . | . . . Propulsion . | . . . Utility 2 | . . 2 Weapon . | . . . Parts Attached 20 | 7 8 5 Power 2 | 1 . 1 Engine 2 | 1 . 1 Core . | . . . Reactor . | . . . Propulsion 6 | 3 1 2 Treads 5 | 2 1 2 Leg 1 | 1 . . Wheel . | . . . Hover . | . . . Flight . | . . . Utility 6 | 1 3 2 Device 2 | . 1 1 Storage 4 | 1 2 1 Processor . | . . . Hackware . | . . . Protection . | . . . Artifact . | . . . Weapon 6 | 2 4 . Energy Gun 6 | 2 4 . Energy Cannon . | . . . Ballistic Gun . | . . . Ballistic Cannon . | . . . Launcher . | . . . Special Weapon . | . . . Impact Weapon . | . . . Slashing Weapon . | . . . Piercing Weapon . | . . . Special Melee Weapon . | . . . Unidentified Prototypes . | . . . Corrupted Parts 1 | . . 1 System Corruption 1 | . . 1 Parts Lost 12 | . 3 9 Power 1 | . . 1 Propulsion 5 | . 1 4 Utility 1 | . 1 . Weapon 5 | . 1 4 Highest Loss Streak 5 | . 1 5 To Critical Strikes . | . . . Average Backups 6 | 1 6 7 Power 2 | . 1 2 Propulsion 1 | . 1 1 Utility . | . . . Weapon 1 | . 2 1 Tool/Special . | . . . Unused Backups 6 | . . 6 Power 2 | . . 2 Propulsion 1 | . . 1 Utility . | . . . Weapon . | . . . Tool/Special 3 | . . 3 Average Slot Usage (%) 89 | . 92 77 Engine 13 | . 14 9 Treads 23 | . 24 17 Device 5 | . 3 11 Storage 21 | . 21 22 Energy Gun 25 | . 27 16 Peak Build Rating 12 | 6 10 12 Average Rating 8 | 4 8 9 On Entrance 4 | . 6 8 Avg Prop Armor Cover (%) 12 | 12 . . Naked Turns . | . . . Heaviest Build 39 | 14 35 39 Greatest Support 40 | 40 40 40 Greatest Overweight (x) 8 | 1 1 8 Average Overweight (x) . | . . . Largest Inventory Capacity 15 | 8 15 15 Average Capacity 14 | 7 14 15 Most Carried 10 | 2 8 10 Average Carried 6 | 1 6 7 Final Capacity 15 | 8 15 15 Final Carried 8 | 2 8 6 Class Distribution -------------------- 100% | Mutant Dominant Class ---------------- Mutant | -10/Materials Mutant | -9/Materials Resources | -11 -10 -9 ----------- Run | Yrd Mat Mat Matter Collected 435 | 237 128 70 Remotely . | . . . Salvage Created 1286 | 107 951 228 Parts 87 | 3 60 24 Haulers Intercepted 3 | . 2 1 Recyclers Shooed 1 | . 1 . Parts Field Recycled . | . . . Retrieved Matter . | . . . Parts Self-Destructed . | . . . Prevented . | . . . Parts Restored . | . . . Kills | -11 -10 -9 ------- Run | Yrd Mat Mat Combat Hostiles Destroyed 28 | . 23 5 Guns 27 | . 22 5 AOE 1 | . 1 . Classes Destroyed 9 | 2 6 1 Worker 4 | 1 3 . Builder 3 | . 2 1 Hauler 3 | . 2 1 Recycler 1 | 1 . . Operator 1 | . 1 . Watcher 2 | . 2 . Swarmer 15 | . 12 3 Grunt 11 | . 11 . Sentry 2 | . . 2 Best Kill Streak 5 | 2 5 4 Combat Bots Only 5 | . 5 3 Max Kills in Single Turn 3 | 1 3 1 Gunslinging 1 | . 1 . Exploded 1 | . 1 . Melee . | . . . Uniques/NPCs Destroyed . | . . . Combat | -11 -10 -9 -------- Run | Yrd Mat Mat Hostile Shots Fired 235 | . 79 156 Missed 69 | . 25 44 Hits 166 | . 54 112 Projectile 166 | . 54 112 Critical Strikes 2 | . . 2 Damage Taken 1756 | . 637 1119 Core 488 | . 86 402 Absorbed by Shields . | . . . Core Remaining (%) 82 | 100 65 . Volleys Fired 76 | 2 57 17 Largest 2 | 2 2 2 Hottest 90 | 90 90 90 Shots Fired 142 | 4 109 29 Gun 142 | 4 109 29 Cannon . | . . . Launcher . | . . . Special . | . . . Kinetic . | . . . Thermal 19 | 2 17 . Explosive . | . . . Electromagnetic 123 | 2 92 29 Robot Hit Streak 9 | 1 6 9 Robot Miss Streak 4 | 2 4 3 Penetration Max . | . . . Secondary Targets 4 | . 4 . Max Gunslinging Chain 1 | . 1 . Shots Hit Robots 95 | 1 72 22 Core Hits 65 | 2 49 14 Critical Kills . | . . . Critical Parts Destroyed . | . . . Critical Strikes 2 | . 2 . Burn 2 | . 2 . Melee Attacks . | . . . Impact . | . . . Slashing . | . . . Piercing . | . . . Sneak Attacks . | . . . Combat Hostiles . | . . . Follow-up Attacks . | . . . Damage Inflicted 1542 | 67 1175 300 Guns 1297 | 37 968 292 Cannons . | . . . Explosions 228 | 30 198 . Melee . | . . . Ramming 17 | . 9 8 Kinetic . | . . . Thermal 352 | 42 310 . Explosive . | . . . Electromagnetic 1173 | 25 856 292 Impact . | . . . Slashing . | . . . Piercing . | . . . Highest Corruption 1 | . . 1 Average Corruption 1 | . . 1 Corruption Purged . | . . . Corruption Blocked . | . . . Effects 1 | . . 1 Misfires 1 | . . 1 Overload Shots . | . . . Overflow Damage . | . . . Projectiles . | . . . Explosions . | . . . Melee . | . . . Knockbacks . | . . . Impact . | . . . Kinetic . | . . . Secondary . | . . . Self-Inflicted Damage 18 | . 16 2 Shots 1 | . 1 . Rammed 3 | . 2 1 Targets Rammed 4 | . 2 2 Kicked . | . . . Crushed 1 | . . 1 Highest Temperature 318 | 60 318 94 Average Temperature 72 | 35 83 31 Received Heat Transfer 429 | . 240 189 Siege Activations . | . . . Martial Activations . | . . . Shielding Activations . | . . . Robots Disrupted . | . . . Combat Hostiles . | . . . Robots Corrupted . | . . . Combat Hostiles . | . . . Parts Fried 1 | . 1 . Impact Corruptions . | . . . Robots Melted . | . . . Combat Hostiles . | . . . Parts Melted 1 | . 1 . Heat Transferred 668 | 37 631 . Parts Sabotaged . | . . . Parts Stolen . | . . . Parts Stripped . | . . . Power Chain Reactions 4 | 1 3 . Alert | -11 -10 -9 ------- Run | Yrd Mat Mat Maximum Alert Level 1 | . 1 . Low Security (%) 86 | 100 82 100 Level 1 13 | . 17 . Level 2 . | . . . Level 3 . | . . . Level 4 . | . . . Level 5 . | . . . High Security . | . . . Max Security . | . . . Peak Influence 248 | 10 248 65 Initial 51 | . 6 51 Average 110 | . 141 13 Influence Increases 831 | 10 679 142 Destroy 0b10 Robot/C 560 | . 460 100 Destroy 0b10 Robot/NC 70 | 10 50 10 Destroy Leader 120 | . 88 32 Successful Hack 9 | . 9 . Disable Machine 15 | . 15 . Destroy Structure 12 | . 12 . Partial Spotted 15 | . 15 . Lose Combat Pursuer 30 | . 30 . Influence Decreases 831 | . 567 264 Entered New Map 75 | . 4 71 Time Decay 677 | . 533 144 Lost Part 79 | . 30 49 Squads Dispatched 3 | . 2 1 Investigation 1 | . 1 . Extermination . | . . . Reinforcement 2 | . 1 1 Assault . | . . . Garrison . | . . . Intercept . | . . . Searches Triggered . | . . . Construction Impeded . | . . . Haulers Reinforced . | . . . Active Scanning Responses . | . . . Cargo Convoy Interrupts . | . . . Stealth | -11 -10 -9 --------- Run | Yrd Mat Mat Distress Signals 2 | . 1 1 Communications Jammed . | . . . Distress Signals . | . . . Times Spotted 52 | . 30 22 Peak Tracking Total 7 | . 4 7 Tactical Retreats 7 | . 2 5 ECM-based Alert Blocks 12 | . . 12 Traps | -11 -10 -9 ------- Run | Yrd Mat Mat Traps Triggered 2 | . 2 . Indirectly . | . . . Trap Hack Attempts . | . . . Triggered . | . . . Disarmed . | . . . Reprogrammed . | . . . Reused . | . . . Traps Extracted . | . . . Installed . | . . . Triggered . | . . . Machines | -11 -10 -9 ---------- Run | Yrd Mat Mat Machines Disabled 1 | . 1 . Max in Single Turn 1 | . 1 . Machines Repaired . | . . . Machines Dismantled . | . . . Machines Sabotaged . | . . . Overloaded Fab Kills . | . . . Hacking | -11 -10 -9 --------- Run | Yrd Mat Mat Machines Accessed 4 | . 4 . Terminals 4 | . 4 . Fabricators . | . . . Repair Stations . | . . . Recycling Units . | . . . Scanalyzers . | . . . Garrison Access . | . . . Total Hacks 7 | . 7 . Successful 4 | . 4 . Failed 3 | . 3 . Catastrophic . | . . . Database Lockouts . | . . . Manual 5 | . 5 . Terminals 7 | . 7 . Fabricators . | . . . Repair Stations . | . . . Recycling Units . | . . . Scanalyzers . | . . . Garrison Access . | . . . Terminal Hacks . | . . . Fabricator Hacks . | . . . Repair Station Hacks . | . . . Recycling Unit Hacks . | . . . Scanalyzer . | . . . Garrison Access Hacks . | . . . Unauthorized Hacks 4 | . 4 . Terminals 4 | . 4 . Botnet 3 | . 3 . Operators 1 | . 1 . Fabricators . | . . . Repair Stations . | . . . Recycling Units . | . . . Scanalyzers . | . . . Garrison Access . | . . . Data Cores Recovered . | . . . Used . | . . . Hacking Detections 2 | . 2 . Full Trace Events . | . . . Feedback Events . | . . . Feedback Blocked . | . . . Robot Schematics Acquired . | . . . Robots Built . | . . . Authchips . | . . . Time . | . . . Total Robot Build Rating . | . . . Part Schematics Acquired . | . . . Parts Built . | . . . Authchips . | . . . Time . | . . . Total Part Build Rating . | . . . Part Studies Acquired . | . . . Parts Repaired . | . . . Time . | . . . Parts Recycled . | . . . Recycled Matter . | . . . Retrieved Matter . | . . . Retrieved Components . | . . . Parts Scanalyzed . | . . . Part Schematics Acquired . | . . . Parts Damaged . | . . . Bothacking | -11 -10 -9 ------------ Run | Yrd Mat Mat Used RIF Installer . | . . . Robots Hacked . | . . . Non-combat . | . . . Combat . | . . . Robot Hacks Applied . | . . . Relay Couplers Released . | . . . Fabnet Peak Effective % . | . . . Robots Rewired . | . . . Allies Hacked . | . . . Hacks Repelled . | . . . Allies | -11 -10 -9 -------- Run | Yrd Mat Mat Total Allies . | . . . Largest Group . | . . . Highest-Rated Group . | . . . Highest-Rated Ally . | . . . Total Orders . | . . . Ally Attacks . | . . . Total Damage . | . . . Kills . | . . . Allies Corrupted . | . . . Allies Melted . | . . . Intel | -11 -10 -9 ------- Run | Yrd Mat Mat Active Infowar (turns) 963 | . 469 494 Terrain 469 | . 469 . ECM 494 | . . 494 Robot Analysis Total . | . . . Derelict Logs Recovered . | . . . Drone Launches . | . . . Drone Recoveries . | . . . Exploration | -11 -10 -9 ------------- Run | Yrd Mat Mat Turns Passed 2494 | 113 1887 494 Spaces Moved 1229 | 63 948 218 Core 13 | 4 . 9 Treads 1211 | 54 948 209 Legs 5 | 5 . . Wheels . | . . . Hover . | . . . Flight . | . . . Fastest Speed 50 | 50 160 160 Average Speed 176 | 151 175 184 Slowest Speed 450 | 160 240 450 Overloaded Moves . | . . . Propulsion Burnouts . | . . . Robots Hopped . | . . . Potential Cave-ins . | . . . Cave-ins Triggered . | . . . Exploration Rate (%) 40 | 4 95 23 Regions Visited 2 Branch Regions . Pre-discovered Areas . | . . . Known Exits Taken . | . . . Unknown Exits Taken 2 | 1 1 . Scrap Searched . | . . . Spaces Dug . | . . . Terrain Destroyed 15 | 4 11 . Melee . | . . . Projectile . | . . . AOE 15 | 4 11 . Terrain Rammed . | . . . Walls Destroyed . | . . . Machines Disabled . | . . . Actions | -11 -10 -9 --------- Run | Yrd Mat Mat Total 1404 | 73 1055 276 Wait 57 | . 32 25 Move 1227 | 62 947 218 Hop . | . . . Pick Up 10 | 2 6 2 Fast Attach 12 | 6 5 1 Attach 7 | . 1 6 Detach . | . . . Swap 8 | 1 4 3 Drop 3 | . 1 2 Fire 76 | 2 57 17 Melee . | . . . Ram 1 | . . 1 Kick . | . . . Crush 3 | . 2 1 Escape Stasis . | . . . Rewire . | . . . Trap . | . . . Miscellaneous . | . . . Route ------- -11/Scrapyard -10/Materials (discovered 5 exits: [*Mat x3] / [*Min x2]) -9/Materials History --------- Turn | Location | Event 21 | -11/Scrapyard | Discovered new exit (range 14) 114 | -11/Scrapyard | Entered Materials 315 | -10/Materials | Build established: Mutant 487 | -10/Materials | Discovered new exit (range 16) 498 | -10/Materials | Discovered new exit (range 13) 682 | -10/Materials | Discovered new exit (range 8) 714 | -10/Materials | Derelicts attacked the area 1091 | -10/Materials | Discovered new exit (range 6) 1729 | -10/Materials | Discovered new exit (range 10) 2001 | -10/Materials | Entered another Materials area 2001 | -9/Materials | Evolved 2 slots: Utility x2 2419 | -9/Materials | Lost 4 parts (4w) 2451 | -9/Materials | Core integrity fell below 50% 2478 | -9/Materials | Core integrity fell below 20% 2481 | -9/Materials | Lost 5 parts (1p4n) 2495 | -9/Materials | Destroyed by S-10 Pest with Light Assault Rifle Last Messages --------------- 02370_ EM Shotgun destroyed. 02371_ S-10 Pest destroyed. 02376_ Acquired 10 matter. 02379_ EM Shotgun destroyed. 02379_ EM Pulse Gun destroyed. 02383_ System corrupted: FCS attempts to trigger EM Shotgun. 02383_ System corrupted: EM Shotgun misfires. 02388_ EM Shotgun destroyed. 02388_ Critical hit (Burn: +37). 02388_ K-01 Serf collects debris. 02390_ W-16 Scout sends out distress signal. 02392_ S-10 Pest destroyed. 02428_ Lgt. Treads destroyed. 02435_ S-10 Pest destroyed. 02436_ Lgt. Treads destroyed. 02441_ Imp. Ion Engine destroyed. 02443_ Lgt. Treads destroyed. 02455_ Slammed into S-10 Pest. 02474_ ALERT: Hostiles spotted, dispatching reinforcements to Terminal M003. Map ----- +----------------------------------------------------+ | | | ?????????????????????????????????????????????? | | ?????????????????????????????????????????????? | | ?????????????????????????????????????????????? | | ?????????????????????????????????????????????? | | ?????????????????????????????????????????????? | | ?????????????????????????????????????????????? | | ?????????????????????????????????????????????? | | ?????????????????????????????????????????????? | | ?????????????????????????????????????????????? | | ?????????????????????????????????????????????? | | ?????????????????????????????????????????????? | | ?????????????????????????????????????????????? | | ?????????????????????????????????????????????? | | ?????????????????????????????????????????????? | | ?????????????????????????????""??????????????? | | ???????????????????????????? ???????????????? | | ???????????????????#+#+####/#????????????????? | | ??????############## ?????????????????? | | ??????# """ Y/ ??????????????????? | | ???????# "R" """ # ????????????????????? | | ???????# " " """ # #######???????????????? | | ???????# """ # # #???????????????? | | ???????# """ / s #???????????????? | | ???????# """ # # #???????????????? | | ???????# # # @ #???????????????? | | ???????##+############ # #???????????????? | | ????????# #??????????# # ] #???????????????? | | ????????# #??????????# # #???????????????? | | ????????# #??????????# # +???????????????? | | ????????# ############ # #???????????????? | | ????????# # #???????????????? | | ????????#= ### #???????????????? | | ????????#%* #?# #???????????????? | | ????????#= #?#######???????????????? | | ######### #???????????????????????? | | / #???????????????????????? | | """ #### ######## #???????????????????????? | | """ #??#+#???????? #???????????????????????? | | """ #??? ?????????? #???????????????????????? | | #??? ???????????????????????????????????? | | """ #???"???????????????????????????????????? | | """ #???"???????????????????????????????????? | | """ #???????????????????????????????????????? | | %% #???????????????????????????????????????? | | #########+##?????????????????????????????????? | | |* "%" ???????????????????????????????? | | =* " ???????????????????????????????? | | ???????????????????????????????? | | ### #######????????????????????????????????? | +----------------------------------------------------+ Best States ------------- Heat Dissipation 28 Energy Generation 12 Energy Capacity 515 Matter Stores 300 Matter Capacity 300 Sight Range 16 Terrain Scan Range 14 Terrain Scan Density 10 ECM Strength 1 Evasion (%) 45 Recoil Reduction 2 Item Schematics ----------------- None Robot Schematics ------------------ None Fabricated ------------ Nothing Repaired ---------- Nothing Studied --------- None Alien Tech Used ----------------- None Achievements -------------- None Challenges ------------ None Game ------ Seed WardroneShieldMaul Manual? 0 Play Time 00:12:26 Cumulative 78.2 hours Start 2026.06.28 @ 00:36:40 End 2026.06.28 @ 00:46:49 Sessions 1 Manual Loads 0 Difficulty Rogue Special Mode None Game No. 131 Rogue 131 Adventurer 0 Explorer 0 Win Type - Total 0 Types 0/0/0/0/0/0/0/0/0/0 Lore% 21 Gallery% 31 Achievement% 27 Wizard Run 0 Options --------- Layout 0 ASCII 0 Keyboard 0 Movement Mouse Keybinds 0 Fullscreen 1 Font 24/Smallcaps Map View 38x25 Zoom Use 98% Tactical HUD 1 Map Filters NONE Filters NONE Steam 1 RUN: 54ffb6da-9ce2-4b45-8e61-3f9644436654